fUST/lending_fUST_20260115
["ID","MTS","AMOUNT","RATE_DAILY","PERIOD"]
[401959739,1768421449186,-1700.0,0.00024664,2]
[401959740,1768421449195,-1700.0,0.00024674,2]
[401959741,1768421449205,-217.39345499,0.00024675,71]
[401959742,1768421449215,-900.0,0.00024677,2]
[401959743,1768421449224,-500.0,0.00024681,2]
[401959744,1768421449234,-900.0,0.00024686,2]
[401959745,1768421449243,-1442.0,0.00024693,2]
[401959746,1768421449253,-11357.60810118,0.000247,3]
[401959747,1768421449263,-900.0,0.00024705,2]
[401959748,1768421449272,-830.8,0.00024711,2]
[401959749,1768421449282,-5000.0,0.00024768,2]
[401959750,1768421449292,-16836.12060946,0.00024774,2]
[401959751,1768421449302,-3162.0,0.00024796,2]
[401959752,1768421449312,-900.0,0.00024798,2]
[401959753,1768421449321,-293.503999,0.000248,7]
[401959754,1768421449331,-151.0,0.000248,7]
[401959755,1768421449340,-293.503999,0.000248,7]
[401959756,1768421449350,-151.0,0.000248,7]
[401959757,1768421449359,-293.503999,0.000248,7]
[401959758,1768421449372,-151.0,0.000248,7]
[401959759,1768421449381,-293.503999,0.000248,7]
[401959760,1768421449391,-252.547119,0.000248,7]
[401959761,1768421449400,-582.913993,0.000248,7]
[401959762,1768421449410,-582.913993,0.000248,7]
[401959763,1768421449420,-582.913993,0.000248,7]
[401959764,1768421449431,-582.913993,0.000248,7]
[401959765,1768421449444,-151.0,0.000248,7]
[401959766,1768421449454,-151.0,0.000248,7]
[401959767,1768421449463,-683.587352,0.000248,7]
[401959768,1768421449473,-683.587352,0.000248,7]
[401959769,1768421449483,-683.587352,0.000248,7]
[401959770,1768421449492,-683.587349,0.000248,7]
[401959771,1768421449650,-795.987765,0.000248,7]
[401959772,1768421449660,-795.987765,0.000248,7]
[401959773,1768421449670,-795.987765,0.000248,7]
[401959774,1768421449680,-795.987771,0.000248,7]
[401959775,1768421449690,-151.0,0.000248,7]
[401959776,1768421449700,-151.0,0.000248,7]
[401959777,1768421449709,-224.869292,0.000248,7]
[401959778,1768421449719,-151.0,0.000248,7]
[401959779,1768421449729,-1303.742173,0.000248,7]
[401959780,1768421449739,-1303.742173,0.000248,7]
[401959781,1768421449748,-1303.742173,0.000248,7]
[401959782,1768421449758,-1303.742169,0.000248,7]
[401959783,1768421449768,-263.265987,0.000248,7]
[401959784,1768421449778,-263.265987,0.000248,7]
[401959785,1768421449788,-263.265987,0.000248,7]
[401959786,1768421449798,-263.265979,0.000248,7]
[401959787,1768421449807,-1442.0,0.00024816,2]
[401959788,1768421449817,-151.0,0.00024816,7]
[401959789,1768421449827,-251.333704,0.00024816,7]
[401959790,1768421449836,-329.81805713,0.00024816,79]
[401959791,1768421449845,-217.39345499,0.00024816,79]
[401959792,1768421449854,-1700.0,0.00024825,2]
[401959793,1768421449863,-900.0,0.00024825,2]
[401959794,1768421449873,-11188.5246793,0.00024837,2]
[401959795,1768421449882,-11188.5246793,0.00024837,2]
[401959796,1768421449893,-11188.5246793,0.00024837,2]
[401959797,1768421449903,-371.616493,0.00024837,7]
[401959798,1768421449912,-371.616493,0.00024837,7]
[401959799,1768421449922,-371.616493,0.00024837,7]
[401959800,1768421449932,-371.61649,0.00024837,7]
[401959801,1768421449941,-240.635546,0.00024837,7]
[401959802,1768421449951,-151.0,0.00024837,7]
[401959803,1768421449961,-151.0,0.00024837,7]
[401959804,1768421449971,-151.0,0.00024837,7]
[401959805,1768421449980,-151.0,0.00024837,7]
[401959806,1768421449991,-5000.3969127,0.0002485,2]
[401959807,1768421450000,-1365.8198747,0.00024851,2]
[401959808,1768421450010,-499.3,0.00024874,2]
[401959809,1768421450020,-216.0,0.00024877,14]
[401959810,1768421450029,-151.0,0.0002489,7]
[401959811,1768421450038,-151.0,0.000249,7]
[401959812,1768421450048,-200.0,0.000249,7]
[401959813,1768421450057,-200.0,0.000249,7]
[401959814,1768421450066,-151.0,0.000249,7]
[401959815,1768421450075,-151.0,0.000249,7]
[401959816,1768421450085,-151.0,0.000249,7]
[401959817,1768421450094,-293.503999,0.000249,7]
[401959818,1768421450103,-151.0,0.000249,7]
[401959819,1768421450112,-293.503999,0.000249,7]
[401959820,1768421450122,-151.0,0.000249,7]
[401959821,1768421450131,-293.503999,0.000249,7]
[401959822,1768421450141,-151.0,0.000249,7]
[401959823,1768421450150,-293.50399,0.000249,7]
[401959824,1768421450160,-582.913993,0.000249,7]
[401959825,1768421450170,-582.913993,0.000249,7]
[401959826,1768421450180,-582.913993,0.000249,7]
[401959827,1768421450190,-582.914002,0.000249,7]
[401959828,1768421450199,-151.0,0.000249,7]
[401959829,1768421450208,-151.0,0.000249,7]
[401959830,1768421450218,-397119.37314824,0.000249,2]
[401959831,1768421450651,-303.10001603,0.000189,2]
[401959832,1768421450661,-303.10001603,0.00019089,2]
[401959833,1768421450671,-303.10001603,0.00019278,2]
[401959834,1768421450681,-122.29995191,0.00019467,2]
[401959843,1768422002735,155.73,5e-05,2]
[401959844,1768422003034,155.73,9.5e-05,2]
[401959845,1768422005816,155.72,5e-05,2]
[401959846,1768422326229,155.0,5e-05,2]
[401959878,1768422631536,-364.3464438,0.00011174,2]
[401959879,1768422631546,-112.1735562,0.00011174,2]
[401959881,1768422631558,-464.8264438,0.00011174,2]
[401959882,1768422631567,-413.89744483,0.00011201,2]
[401959883,1768422631576,-1046.78699745,0.00011229,2]
[401959884,1768422631585,-1200.0,0.00011944,2]
[401959885,1768422631594,-300.0,0.00011945,2]
[401959886,1768422631603,-10340.2452966,0.00011946,2]
[401959887,1768422631612,-259.9876049,0.00012,2]
[401959888,1768422631621,-1304.50967862,0.00012,2]
[401959889,1768422631630,-300.0,0.00012184,2]
[401959890,1768422631640,-300.0,0.00012184,2]
[401959891,1768422631650,-300.0,0.00012184,2]
[401959892,1768422631660,-300.0,0.00012184,2]
[401959893,1768422631669,-300.0,0.00012184,2]
[401959894,1768422631678,-300.0,0.00012184,2]
[401959895,1768422631689,-300.0,0.00012184,2]
[401959896,1768422631700,-300.0,0.00012184,2]
[401959897,1768422631710,-300.0,0.00012184,2]
[401959898,1768422631719,-300.0,0.00012184,2]
[401959899,1768422631728,-300.0,0.00012184,2]
[401959900,1768422631738,-300.0,0.00012184,2]
[401959901,1768422631747,-300.0,0.00012184,2]
[401959902,1768422631756,-300.0,0.00012184,2]
[401959903,1768422631767,-300.0,0.00012184,2]
[401959904,1768422631776,-16121.0513342,0.00012184,2]
[401959905,1768422631787,-20541.79369866,0.00012184,2]
[401959906,1768422631798,-508.75859215,0.00012184,2]
[401959907,1768422631813,-625.36181593,0.00012184,2]
[401959916,1768422637640,-12203.03455906,0.00012184,2]
[401959917,1768422637649,-186.40824943,0.00012327,2]
[401959918,1768422637659,-600.0,0.00012427,2]
[401959919,1768422637668,-14745.19852958,0.000129,2]
[401959920,1768422637677,-420.0,0.00013113,2]
[401959921,1768422637687,-488.39898489,0.00013201,2]
[401959922,1768422637700,-440.24648614,0.00013273,2]
[401959923,1768422637709,-500.0,0.00013273,2]
[401959924,1768422637718,-547.00656757,0.00013273,2]
[401959925,1768422637728,-500.0,0.00013273,2]
[401959926,1768422637737,-500.0,0.00013273,2]
[401959927,1768422637747,-500.0,0.00013273,2]
[401959928,1768422637756,-500.0,0.00013273,2]
[401959929,1768422637765,-500.0,0.00013273,2]
[401959930,1768422637774,-500.0,0.00013273,2]
[401959931,1768422637784,-500.0,0.00013273,2]
[401959932,1768422637793,-501.85584568,0.00013273,2]
[401959933,1768422637802,-500.0,0.00013273,2]
[401959934,1768422637812,-500.0,0.00013273,2]
[401959935,1768422637821,-500.0,0.00013273,2]
[401959936,1768422637831,-500.0,0.00013273,2]
[401959937,1768422637840,-500.0,0.00013273,2]
[401959938,1768422637849,-500.0,0.00013273,2]
[401959939,1768422637858,-500.0,0.00013273,2]
[401959940,1768422637867,-500.0,0.00013273,2]
[401959941,1768422637877,-500.36335047,0.00013273,2]
[401959942,1768422637886,-500.0,0.00013273,2]
[401959943,1768422637895,-500.40591836,0.00013273,2]
[401959944,1768422637904,-500.0,0.00013273,2]
[401959945,1768422637914,-500.0,0.00013273,2]
[401959946,1768422637923,-500.0,0.00013273,2]
[401959947,1768422637932,-185.624668,0.00013273,2]
[401959948,1768422637941,-501.03457385,0.00013273,2]
[401959949,1768422637951,-520.1094365,0.00013273,2]
[401959950,1768422637960,-261.59054001,0.00013273,2]
[401959951,1768422637969,-500.0,0.00013273,2]
[401959952,1768422637978,-500.0,0.00013273,2]
[401959953,1768422637987,-500.0,0.00013273,2]
[401959954,1768422637996,-500.20354178,0.00013273,2]
[401959955,1768422638005,-500.0,0.00013273,2]
[401959956,1768422638014,-500.0,0.00013273,2]
[401959957,1768422638024,-500.0,0.00013273,2]
[401959958,1768422638032,-500.0,0.00013273,2]
[401959959,1768422638042,-500.0,0.00013273,2]
[401959960,1768422638051,-500.0,0.00013273,2]
[401959961,1768422638060,-500.0,0.00013273,2]
[401959962,1768422638069,-500.0,0.00013273,2]
[401959963,1768422638079,-500.0,0.00013273,2]
[401959964,1768422638088,-500.0,0.00013273,2]
[401959965,1768422638097,-500.0,0.00013273,2]
[401959966,1768422638106,-500.0,0.00013273,2]
[401959967,1768422638115,-500.0,0.00013273,2]
[401959968,1768422638125,-500.0,0.00013273,2]
[401959969,1768422638134,-500.0,0.00013273,2]
[401959970,1768422638143,-500.25674362,0.00013273,2]
[401959971,1768422638152,-500.0,0.00013273,2]
[401959972,1768422638162,-500.0,0.00013273,2]
[401959973,1768422638171,-500.0,0.00013273,2]
[401959974,1768422638180,-1305.8141883,0.00013327,2]
[401959975,1768422638189,-500.0,0.00013425,2]
[401959976,1768422638198,-500.0,0.00013562,2]
[401959977,1768422638208,-3649.4216937,0.00013599,2]
[401959978,1768422638218,-720.0,0.00013669,2]
[401959979,1768422638227,-300.0,0.00013673,2]
[401959980,1768422638236,-500.0,0.00013698,2]
[401959981,1768422638245,-500.0,0.00013698,2]
[401959982,1768422638254,-500.0,0.00013698,2]
[401959983,1768422638263,-500.0,0.00013698,2]
[401959984,1768422638272,-500.0,0.00013698,2]
[401959985,1768422638282,-500.0,0.00013698,2]
[401959986,1768422638291,-500.0,0.00013698,2]
[401959987,1768422638300,-500.0,0.00013698,2]
[401959988,1768422638310,-500.0,0.00013698,2]
[401959989,1768422638319,-500.0,0.00013698,2]
[401959990,1768422638328,-500.0,0.00013698,2]
[401959991,1768422638337,-246.4055421,0.00013698,2]
[401959992,1768422638346,-500.0,0.00013698,2]
[401959993,1768422638355,-531.81872931,0.00013698,2]
[401959994,1768422638365,-504.29229129,0.00013698,2]
[401959995,1768422638374,-500.0,0.00013698,2]
[401959996,1768422638382,-500.0,0.00013698,2]
[401959997,1768422638391,-500.0,0.00013698,2]
[401959998,1768422638401,-559.52204836,0.00013698,2]
[401959999,1768422638411,-500.0,0.00013698,2]
[401960000,1768422638420,-500.0,0.00013698,2]
[401960001,1768422638429,-500.0,0.00013698,2]
[401960002,1768422638438,-500.0,0.00013698,2]
[401960003,1768422638447,-550.39437847,0.00013698,2]
[401960004,1768422638457,-1000.0,0.00013698,2]
[401960005,1768422638466,-1000.0,0.00013698,2]
[401960006,1768422638475,-1000.0,0.00013698,2]
[401960007,1768422638485,-1000.0,0.00013698,2]
[401960008,1768422638494,-1000.0,0.00013698,2]
[401960009,1768422638503,-1000.0,0.00013698,2]
[401960010,1768422638512,-1000.0,0.00013698,2]
[401960011,1768422638522,-1017.75755303,0.00013698,2]
[401960012,1768422638531,-525.94,0.00013698,2]
[401960013,1768422638540,-525.94,0.00013698,2]
[401960014,1768422638550,-525.94,0.00013698,2]
[401960015,1768422638560,-525.94,0.00013698,2]
[401960016,1768422638569,-525.94,0.00013698,2]
[401960017,1768422638578,-525.94,0.00013698,2]
[401960018,1768422638588,-500.0,0.00013698,2]
[401960019,1768422638597,-525.94,0.00013698,2]
[401960020,1768422638606,-500.0,0.00013698,2]
[401960021,1768422638615,-525.94,0.00013698,2]
[401960022,1768422638625,-500.0,0.00013698,2]
[401960023,1768422638634,-525.94,0.00013698,2]
[401960024,1768422638643,-500.0,0.00013698,2]
[401960025,1768422638652,-525.94,0.00013698,2]
[401960026,1768422638666,-500.0,0.00013698,2]
[401960027,1768422638677,-500.0,0.00013698,2]
[401960028,1768422638686,-500.0,0.00013698,2]
[401960029,1768422638699,-500.0,0.00013698,2]
[401960030,1768422638709,-525.94,0.00013698,2]
[401960031,1768422638718,-500.0,0.00013698,2]
[401960032,1768422638728,-525.94,0.00013698,2]
[401960033,1768422638738,-500.0,0.00013698,2]
[401960034,1768422638748,-525.94,0.00013698,2]
[401960035,1768422638757,-260.74557216,0.00013698,2]
[401960036,1768422638767,-525.94,0.00013698,2]
[401960037,1768422638777,-525.94,0.00013698,2]
[401960038,1768422638786,-525.94,0.00013698,2]
[401960039,1768422638796,-525.94,0.00013698,2]
[401960040,1768422638806,-525.94,0.00013698,2]
[401960041,1768422638815,-525.94,0.00013698,2]
[401960042,1768422638825,-525.94,0.00013698,2]
[401960043,1768422638834,-525.94,0.00013698,2]
[401960044,1768422638844,-525.94,0.00013698,2]
[401960045,1768422638853,-525.94,0.00013698,2]
[401960046,1768422638864,-526.04678427,0.00013698,2]
[401960047,1768422638874,-105249.3855528,0.00013699,2]
[401960048,1768422638883,-500.0,0.00013699,2]
[401960049,1768422638892,-501.43010395,0.00013699,2]
[401960050,1768422638901,-500.73561513,0.00013699,2]
[401960051,1768422638911,-500.0,0.00013699,2]
[401960052,1768422638921,-501.04290038,0.00013699,2]
[401960053,1768422638931,-430.92904569,0.00013699,2]
[401960054,1768422638941,-500.0,0.00013699,2]
[401960055,1768422638950,-500.0,0.00013699,2]
[401960056,1768422638959,-253.04828186,0.00013699,2]
[401960057,1768422638969,-500.31646223,0.00013699,2]
[401960058,1768422638979,-500.64767098,0.00013699,2]
[401960059,1768422638989,-500.0,0.00013699,2]
[401960060,1768422638998,-500.0,0.00013699,2]
[401960061,1768422639008,-500.0,0.00013699,2]
[401960062,1768422639017,-500.0,0.00013699,2]
[401960063,1768422639027,-500.0,0.00013699,2]
[401960064,1768422639036,-504.71400239,0.00013699,2]
[401960065,1768422639046,-500.0,0.00013699,2]
[401960066,1768422639056,-158.55908659,0.00013699,2]
[401960067,1768422639066,-500.0,0.00013699,2]
[401960068,1768422639076,-500.0,0.00013699,2]
[401960069,1768422639085,-500.0,0.00013699,2]
[401960070,1768422639094,-500.0,0.00013699,2]
[401960071,1768422639104,-500.0,0.00013699,2]
[401960072,1768422639113,-500.0,0.00013699,2]
[401960073,1768422639123,-500.28466628,0.00013699,2]
[401960074,1768422639133,-500.0,0.00013699,2]
[401960075,1768422639143,-500.0,0.00013699,2]
[401960076,1768422639152,-500.0,0.00013699,2]
[401960077,1768422639161,-500.0,0.00013699,2]
[401960078,1768422639170,-500.0,0.00013699,2]
[401960079,1768422639180,-500.91728774,0.00013699,2]
[401960081,1768422639190,-500.0,0.00013699,2]
[401960082,1768422639200,-500.0,0.00013699,2]
[401960083,1768422639209,-500.18151146,0.00013699,2]
[401960084,1768422639219,-500.0,0.00013699,2]
[401960085,1768422639228,-500.0,0.00013699,2]
[401960086,1768422639238,-500.0,0.00013699,2]
[401960087,1768422639247,-500.0,0.00013699,2]
[401960088,1768422639256,-500.0,0.00013699,2]
[401960089,1768422639265,-500.0,0.00013699,2]
[401960090,1768422639274,-500.0,0.00013699,2]
[401960091,1768422639283,-500.0,0.00013699,2]
[401960092,1768422639293,-500.0,0.00013699,2]
[401960093,1768422639302,-501.05002058,0.00013699,2]
[401960094,1768422639312,-500.0,0.00013699,2]
[401960095,1768422639321,-443.99780341,0.00013699,2]
[401960097,1768422639330,-500.0,0.00013699,2]
[401960099,1768422639339,-500.0,0.00013699,2]
[401960101,1768422639349,-500.0,0.00013699,2]
[401960103,1768422639359,-500.0,0.00013699,2]
[401960105,1768422639368,-500.0,0.00013699,2]
[401960107,1768422639377,-500.0,0.00013699,2]
[401960109,1768422639386,-500.0,0.00013699,2]
[401960111,1768422639396,-500.0,0.00013699,2]
[401960112,1768422639405,-500.0,0.00013699,2]
[401960113,1768422639415,-500.0,0.00013699,2]
[401960114,1768422639424,-500.0,0.00013699,2]
[401960115,1768422639433,-500.0,0.00013699,2]
[401960116,1768422639442,-500.0,0.00013699,2]
[401960117,1768422639451,-500.0,0.00013699,2]
[401960118,1768422639460,-413.79090585,0.00013699,2]
[401960119,1768422639469,-500.0,0.00013699,2]
[401960120,1768422639479,-500.0,0.00013699,2]
[401960121,1768422639488,-501.1212268,0.00013699,2]
[401960122,1768422639497,-500.0,0.00013699,2]
[401960123,1768422639506,-500.0,0.00013699,2]
[401960124,1768422639516,-500.0,0.00013699,2]
[401960125,1768422639526,-500.0,0.00013699,2]
[401960126,1768422639536,-500.0,0.00013699,2]
[401960127,1768422639545,-337.12216238,0.00013699,2]
[401960128,1768422639554,-556.99110983,0.00013821,2]
[401960129,1768422639564,-1000.0,0.00013821,2]
[401960130,1768422639573,-653.79187063,0.00013821,2]
[401960132,1768422639583,-1000.0,0.00013821,2]
[401960133,1768422639592,-1000.0,0.00013821,2]
[401960134,1768422639601,-1000.0,0.00013821,2]
[401960135,1768422639611,-1000.0,0.00013821,2]
[401960137,1768422639621,-1000.0,0.00013821,2]
[401960139,1768422639630,-1000.0,0.00013821,2]
[401960141,1768422639640,-1000.0,0.00013821,2]
[401960143,1768422639649,-1000.0,0.00013821,2]
[401960145,1768422639658,-500.41691689,0.00013821,2]
[401960147,1768422639668,-1000.0,0.00013821,2]
[401960149,1768422639678,-1000.0,0.00013821,2]
[401960151,1768422639692,-1003.63165228,0.00013821,2]
[401960153,1768422639704,-1000.0,0.00013821,2]
[401960155,1768422639713,-886.78841051,0.00013821,2]
[401960157,1768422639723,-1000.0,0.00013821,2]
[401960159,1768422639735,-1106.75656303,0.00013821,2]
[401960161,1768422639744,-476.24625729,0.00013821,2]
[401960162,1768422639753,-695.77760179,0.00013821,2]
[401960164,1768422639764,-204.52635897,0.00013821,2]
[401960166,1768422639773,-1000.0,0.00013821,2]
[401960168,1768422639782,-946.5684735,0.00013821,2]
[401960170,1768422639791,-344.64451203,0.00013821,2]
[401960172,1768422639800,-424.36340331,0.00013821,2]
[401960174,1768422639810,-1000.0,0.00013821,2]
[401960176,1768422639822,-1000.0,0.00013821,2]
[401960178,1768422639831,-1000.0,0.00013821,2]
[401960180,1768422639840,-1000.0,0.00013821,2]
[401960182,1768422639849,-1000.0,0.00013821,2]
[401960184,1768422639858,-1000.0,0.00013821,2]
[401960185,1768422639867,-1000.0,0.00013821,2]
[401960186,1768422639877,-784.00644743,0.00013821,2]
[401960187,1768422639886,-1000.0,0.00013821,2]
[401960188,1768422639895,-1000.0,0.00013821,2]
[401960189,1768422639904,-1000.0,0.00013821,2]
[401960190,1768422639914,-1000.0,0.00013821,2]
[401960191,1768422639923,-1000.0,0.00013821,2]
[401960193,1768422639933,-500.0,0.00013821,2]
[401960194,1768422639942,-500.0,0.00013836,2]
[401960195,1768422639951,-150.15988072,0.00013973,2]
[401960197,1768422639961,-500.0,0.00013973,2]
[401960199,1768422639970,-155.73,0.00014,2]
[401960201,1768422639979,-500.0,0.0001411,2]
[401960203,1768422639990,-600.0,0.00014221,2]
[401960205,1768422639999,-665.99620392,0.00014247,2]
[401960207,1768422640008,-1000.0,0.00014247,2]
[401960209,1768422640017,-250.0,0.00014247,2]
[401960211,1768422640026,-500.0,0.00014247,2]
[401960213,1768422640035,-1000.0,0.00014247,2]
[401960215,1768422640044,-1000.0,0.00014247,2]
[401960217,1768422640053,-1001.28209032,0.00014247,2]
[401960219,1768422640063,-1000.0,0.00014247,2]
[401960221,1768422640072,-1000.0,0.00014247,2]
[401960223,1768422640081,-309.68519743,0.00014247,2]
[401960225,1768422640091,-1000.0,0.00014247,2]
[401960227,1768422640101,-1000.0,0.00014247,2]
[401960229,1768422640110,-693.53352259,0.00014247,2]
[401960231,1768422640119,-1003.87539742,0.00014247,2]
[401960233,1768422640128,-1000.0,0.00014247,2]
[401960235,1768422640137,-1000.0,0.00014247,2]
[401960237,1768422640146,-1000.0,0.00014247,2]
[401960239,1768422640155,-1000.0,0.00014247,2]
[401960241,1768422640165,-1000.0,0.00014247,2]
[401960242,1768422640174,-1001.31706943,0.00014247,2]
[401960244,1768422640183,-1000.0,0.00014247,2]
[401960247,1768422640193,-501.74975073,0.00014247,2]
[401960249,1768422640202,-501.21795351,0.00014247,2]
[401960251,1768422640211,-1000.0,0.00014247,2]
[401960253,1768422640220,-685.95842189,0.00014247,2]
[401960254,1768422640229,-526.2087109,0.00014247,2]
[401960256,1768422640238,-1000.62157755,0.00014247,2]
[401960258,1768422640247,-1000.0,0.00014247,2]
[401960260,1768422640257,-559.26251357,0.00014247,2]
[401960262,1768422640266,-1000.0,0.00014247,2]
[401960264,1768422640275,-1000.0,0.00014247,2]
[401960266,1768422640284,-501.82501982,0.00014247,2]
[401960268,1768422640293,-1000.0,0.00014247,2]
[401960270,1768422640302,-1000.0,0.00014247,2]
[401960272,1768422640312,-519.65670355,0.00014247,2]
[401960274,1768422640321,-1000.0,0.00014247,2]
[401960276,1768422640330,-1000.0,0.00014247,2]
[401960278,1768422640340,-343.96245491,0.00014247,2]
[401960280,1768422640349,-990.87296502,0.00014247,2]
[401960282,1768422640359,-1000.0,0.00014247,2]
[401960285,1768422640369,-1000.0,0.00014247,2]
[401960287,1768422640380,-1087.16663197,0.00014247,2]
[401960288,1768422640391,-1000.0,0.00014247,2]
[401960289,1768422640400,-1000.0,0.00014247,2]
[401960290,1768422640409,-1000.0,0.00014247,2]
[401960291,1768422640419,-1000.0,0.00014247,2]
[401960292,1768422640428,-1000.0,0.00014247,2]
[401960293,1768422640438,-1000.0,0.00014247,2]
[401960294,1768422640447,-1000.0,0.00014247,2]
[401960295,1768422640457,-1000.0,0.00014247,2]
[401960296,1768422640466,-504.58578591,0.00014247,2]
[401960297,1768422640476,-501.3857634,0.00014247,2]
[401960298,1768422640485,-1000.0,0.00014247,2]
[401960299,1768422640495,-1000.0,0.00014247,2]
[401960300,1768422640504,-500.0,0.00014247,2]
[401960301,1768422640514,-1304.55815231,0.00014368,2]
[401960302,1768422640523,-1500.0,0.00014368,2]
[401960303,1768422640533,-1500.0,0.00014368,2]
[401960304,1768422640542,-1623.81068567,0.00014368,2]
[401960305,1768422640553,-1500.0,0.00014368,2]
[401960306,1768422640562,-1500.0,0.00014368,2]
[401960307,1768422640572,-1500.0,0.00014368,2]
[401960308,1768422640582,-1500.0,0.00014368,2]
[401960309,1768422640591,-1500.0,0.00014368,2]
[401960310,1768422640601,-1500.0,0.00014368,2]
[401960311,1768422640610,-1500.0,0.00014368,2]
[401960312,1768422640620,-1500.0,0.00014368,2]
[401960313,1768422640629,-1500.0,0.00014368,2]
[401960314,1768422640638,-1500.0,0.00014368,2]
[401960315,1768422640648,-1500.0,0.00014368,2]
[401960316,1768422640657,-1500.0,0.00014368,2]
[401960317,1768422640670,-1500.0,0.00014368,2]
[401960318,1768422640680,-1003.01901965,0.00014368,2]
[401960319,1768422640691,-1500.0,0.00014368,2]
[401960320,1768422640702,-1500.0,0.00014368,2]
[401960321,1768422640712,-1500.0,0.00014368,2]
[401960322,1768422640722,-1522.04357159,0.00014368,2]
[401960323,1768422640733,-1500.0,0.00014368,2]
[401960324,1768422640743,-1158.07183809,0.00014368,2]
[401960325,1768422640752,-738.47106789,0.00014368,2]
[401960326,1768422640761,-1500.0,0.00014368,2]
[401960327,1768422640771,-500.0,0.00014384,2]
[401960328,1768422640780,-587.0,0.00014396,2]
[401960329,1768422640789,-100000.0,0.00014444,2]
[401960330,1768422640799,-5000.0,0.0001451,2]
[401960331,1768422640809,-205.03362279,0.00014521,2]
[401960332,1768422640818,-900.0,0.00014768,2]
[401960333,1768422640827,-500.0,0.00014795,2]
[401960334,1768422640836,-200.84224431,0.00014795,2]
[401960335,1768422640981,-1500.0,0.00014795,2]
[401960336,1768422641021,-716.4794408,0.00014795,2]
[401960337,1768422641031,-1500.0,0.00014795,2]
[401960338,1768422641041,-1500.0,0.00014795,2]
[401960339,1768422641050,-341.41978725,0.00014795,2]
[401960340,1768422641059,-1500.0,0.00014795,2]
[401960341,1768422641069,-1500.0,0.00014795,2]
[401960342,1768422641079,-586.73306672,0.00014795,2]
[401960343,1768422641089,-1500.0,0.00014795,2]
[401960344,1768422641099,-1082.85856265,0.00014795,2]
[401960345,1768422641108,-1479.00156205,0.00014795,2]
[401960346,1768422641118,-1518.01129916,0.00014795,2]
[401960347,1768422641128,-1500.0,0.00014795,2]
[401960348,1768422641137,-419.62973898,0.00014795,2]
[401960349,1768422641147,-622.97821503,0.00014795,2]
[401960350,1768422641156,-1103.68651404,0.00014795,2]
[401960351,1768422641165,-1292.00440399,0.00014795,2]
[401960352,1768422641175,-949.7291255,0.00014795,2]
[401960353,1768422641185,-1500.0,0.00014795,2]
[401960354,1768422641195,-827.64226173,0.00014795,2]
[401960355,1768422641204,-1500.0,0.00014795,2]
[401960356,1768422641214,-522.48598281,0.00014795,2]
[401960357,1768422641223,-927.69304459,0.00014795,2]
[401960358,1768422641233,-1500.0,0.00014795,2]
[401960359,1768422641242,-1500.0,0.00014795,2]
[401960360,1768422641252,-1051.15225971,0.00014795,2]
[401960361,1768422641261,-1500.0,0.00014795,2]
[401960362,1768422641270,-1500.0,0.00014795,2]
[401960363,1768422641280,-1003.83285644,0.00014795,2]
[401960364,1768422641289,-1500.0,0.00014795,2]
[401960365,1768422641299,-1500.0,0.00014795,2]
[401960366,1768422641309,-1500.0,0.00014795,2]
[401960367,1768422641318,-595.01188659,0.000149,2]